[Event "Titled Tuesday Blitz July 20 2021"]
[White "Woodward, Andy"]
[Black "Zhigalko, Sergei"]
[WhiteFideId "30953499"]
[BlackFideId "13502956"]
[WhiteElo "2137"]
[BlackElo "2662"]
[Result "0-1"]
[Round "09"]
[TimeControl "180+1"]
[Date "2021.07.20"]
[WhiteClock "0:00:04"]
[BlackClock "0:00:04"]

1. d4 {[%clk 0:03:00]}  Nf6 {[%clk 0:02:59]} 2. c4 {[%clk 0:03:00]}  e6 {[%clk 0:02:59]} 3. Nc3 {[%clk 0:03:01]}  Bb4 {[%clk 0:02:58]} 4. Qc2 {[%clk 0:03:00]}  O-O {[%clk 0:02:58]} 5. a3 {[%clk 0:03:00]}  Bxc3+ {[%clk 0:02:58]} 6. Qxc3 {[%clk 0:03:01]}  d6 {[%clk 0:02:59]} 7. f3 {[%clk 0:02:58]}  d5 {[%clk 0:02:58]} 8. Bg5 {[%clk 0:02:56]}  h6 {[%clk 0:02:52]} 9. Bh4 {[%clk 0:02:54]}  c5 {[%clk 0:02:47]} 10. e3 {[%clk 0:02:52]}  cxd4 {[%clk 0:02:39]} 11. exd4 {[%clk 0:02:48]}  Nc6 {[%clk 0:02:35]} 12. O-O-O {[%clk 0:02:37]}  Bd7 {[%clk 0:02:09]} 13. Kb1 {[%clk 0:02:32]}  Rc8 {[%clk 0:02:05]} 14. c5 {[%clk 0:02:30]}  Re8 {[%clk 0:01:34]} 15. Bb5 {[%clk 0:02:21]}  b6 {[%clk 0:01:24]} 16. Ne2 {[%clk 0:02:13]}  bxc5 {[%clk 0:01:15]} 17. dxc5 {[%clk 0:02:13]}  Rb8 {[%clk 0:01:06]} 18. Bxf6 {[%clk 0:01:59]}  gxf6 {[%clk 0:01:01]} 19. Bxc6 {[%clk 0:01:55]}  Bxc6 {[%clk 0:01:02]} 20. Nd4 {[%clk 0:01:56]}  Ba4 {[%clk 0:01:01]} 21. Rc1 {[%clk 0:01:42]}  Qc7 {[%clk 0:00:51]} 22. Rhe1 {[%clk 0:01:35]}  Rb7 {[%clk 0:00:35]} 23. Ka1 {[%clk 0:01:12]}  Reb8 {[%clk 0:00:33]} 24. Rb1 {[%clk 0:01:07]}  Bb3 {[%clk 0:00:17]} 25. Nxe6 {[%clk 0:00:42]}  fxe6 {[%clk 0:00:15]} 26. Rxe6 {[%clk 0:00:43]}  d4 {[%clk 0:00:12]} 27. Qe1 {[%clk 0:00:31]}  Bxe6 {[%clk 0:00:12]} 28. Qxe6+ {[%clk 0:00:32]}  Qf7 {[%clk 0:00:13]} 29. Qg4+ {[%clk 0:00:32]}  Qg7 {[%clk 0:00:11]} 30. Qxd4 {[%clk 0:00:29]}  f5 {[%clk 0:00:11]} 31. Qd2 {[%clk 0:00:21]}  Rb3 {[%clk 0:00:11]} 32. Ka2 {[%clk 0:00:14]}  Qf7 {[%clk 0:00:11]} 33. Ka1 {[%clk 0:00:11]}  Qf6 {[%clk 0:00:11]} 34. Ka2 {[%clk 0:00:07]}  Qe6 {[%clk 0:00:11]} 35. Ka1 {[%clk 0:00:07]}  a6 {[%clk 0:00:11]} 36. h4 {[%clk 0:00:06]}  Kh8 {[%clk 0:00:06]} 37. h5 {[%clk 0:00:06]}  Qe3 {[%clk 0:00:05]} 38. Qc2 {[%clk 0:00:01]}  Qe5 {[%clk 0:00:03]} 39. Ka2 {[%clk 0:00:01]}  Qd5 {[%clk 0:00:04]} 40. Ka1 {[%clk 0:00:02]}  a5 {[%clk 0:00:03]} 41. Qc1 {[%clk 0:00:01]}  Kg7 {[%clk 0:00:03]} 42. Ka2 {[%clk 0:00:02]}  Rc3+ {[%clk 0:00:02]} 43. b3 {[%clk 0:00:01]}  Rxc1 {[%clk 0:00:02]} 44. Rb2 {[%clk 0:00:02]}  Rc3 {[%clk 0:00:02]} 45. a4 {[%clk 0:00:03]}  Rcxb3 {[%clk 0:00:03]} 46. Kb1 {[%clk 0:00:03]}  Rxb2+ {[%clk 0:00:03]} 47. Kc1 {[%clk 0:00:04]}  Qd2# {[%clk 0:00:04]} 0-1


[Site "https://www.chess.com"]

[Event "Titled Tuesday Blitz July 20 2021"]
[White "Yaran, Siar"]
[Black "Ibrahimli, Murad"]
[WhiteFideId "6323006"]
[BlackFideId "13410229"]
[WhiteElo "1977"]
[BlackElo "2109"]
[Result "0-1"]
[Round "09"]
[TimeControl "180+1"]
[Date "2021.07.20"]
[WhiteClock "0:00:01"]
[BlackClock "0:00:04"]

1. e4 {[%clk 0:03:00]}  d5 {[%clk 0:03:00]} 2. exd5 {[%clk 0:02:59]}  Qxd5 {[%clk 0:03:01]} 3. Nc3 {[%clk 0:02:59]}  Qa5 {[%clk 0:03:01]} 4. b4 {[%clk 0:02:57]}  Qxb4 {[%clk 0:03:01]} 5. Rb1 {[%clk 0:02:57]}  Qd6 {[%clk 0:03:01]} 6. Nf3 {[%clk 0:02:56]}  Nf6 {[%clk 0:03:01]} 7. d4 {[%clk 0:02:54]}  c6 {[%clk 0:03:01]} 8. Bd3 {[%clk 0:02:53]}  g6 {[%clk 0:02:49]} 9. O-O {[%clk 0:02:49]}  Bg7 {[%clk 0:02:50]} 10. Re1 {[%clk 0:02:49]}  O-O {[%clk 0:02:50]} 11. Bg5 {[%clk 0:02:35]}  b6 {[%clk 0:02:43]} 12. h3 {[%clk 0:02:30]}  Be6 {[%clk 0:02:33]} 13. Qd2 {[%clk 0:02:22]}  Bd5 {[%clk 0:02:19]} 14. Bf4 {[%clk 0:02:01]}  Qd8 {[%clk 0:02:17]} 15. Ne5 {[%clk 0:02:01]}  Nfd7 {[%clk 0:02:09]} 16. Ng4 {[%clk 0:01:26]}  Be6 {[%clk 0:01:45]} 17. Rxe6 {[%clk 0:01:12]}  fxe6 {[%clk 0:01:44]} 18. Bc4 {[%clk 0:01:11]}  Kh8 {[%clk 0:01:44]} 19. Bxe6 {[%clk 0:01:06]}  Na6 {[%clk 0:01:41]} 20. Bh6 {[%clk 0:00:50]}  Nc7 {[%clk 0:01:41]} 21. Re1 {[%clk 0:00:42]}  Nxe6 {[%clk 0:01:37]} 22. Rxe6 {[%clk 0:00:43]}  Nf6 {[%clk 0:01:29]} 23. Ne5 {[%clk 0:00:39]}  Rc8 {[%clk 0:01:00]} 24. Bxg7+ {[%clk 0:00:30]}  Kxg7 {[%clk 0:01:00]} 25. Nxc6 {[%clk 0:00:30]}  Rxc6 {[%clk 0:00:58]} 26. Rxc6 {[%clk 0:00:31]}  Qd7 {[%clk 0:00:58]} 27. d5 {[%clk 0:00:25]}  Rd8 {[%clk 0:00:56]} 28. Qe3 {[%clk 0:00:12]}  Rf8 {[%clk 0:00:42]} 29. Re6 {[%clk 0:00:11]}  Rf7 {[%clk 0:00:43]} 30. Qe5 {[%clk 0:00:11]}  Kg8 {[%clk 0:00:43]} 31. g4 {[%clk 0:00:08]}  Ne8 {[%clk 0:00:34]} 32. Ne4 {[%clk 0:00:07]}  Nc7 {[%clk 0:00:35]} 33. Ng5 {[%clk 0:00:05]}  Nxe6 {[%clk 0:00:26]} 34. dxe6 {[%clk 0:00:01]}  Qd1+ {[%clk 0:00:27]} 35. Kg2 {[%clk 0:00:02]}  Rf6 {[%clk 0:00:19]} 36. Qb8+ {[%clk 0:00:02]}  Kg7 {[%clk 0:00:20]} 37. Qb7 {[%clk 0:00:03]}  Qd6 {[%clk 0:00:19]} 38. Ne4 {[%clk 0:00:02]}  Qxe6 {[%clk 0:00:18]} 39. Nxf6 {[%clk 0:00:03]}  Kxf6 {[%clk 0:00:18]} 40. Qf3+ {[%clk 0:00:03]}  Kg7 {[%clk 0:00:17]} 41. a3 {[%clk 0:00:02]}  Qf6 {[%clk 0:00:16]} 42. Kg3 {[%clk 0:00:02]}  Qd6+ {[%clk 0:00:12]} 43. Kg2 {[%clk 0:00:02]}  g5 {[%clk 0:00:11]} 44. Qc3+ {[%clk 0:00:02]}  Qf6 {[%clk 0:00:10]} 45. Qd3 {[%clk 0:00:02]}  Qe5 {[%clk 0:00:09]} 46. Kf3 {[%clk 0:00:02]}  h6 {[%clk 0:00:06]} 47. Qe3 {[%clk 0:00:02]}  Kf6 {[%clk 0:00:05]} 48. Qd3 {[%clk 0:00:01]}  Qh2 {[%clk 0:00:04]} 49. Ke2 {[%clk 0:00:01]}  Qe5+ {[%clk 0:00:04]} 50. Kf3 {[%clk 0:00:01]}  Qc5 {[%clk 0:00:04]} 0-1


[Site "https://www.chess.com"]

[Event "Titled Tuesday Blitz July 20 2021"]
[White "Zherebtsova, Alexandra"]
[Black "Baskin, Robert"]
[WhiteFideId "24129518"]
[BlackFideId "24662402"]
[WhiteElo "2025"]
[BlackElo "2462"]
[Result "0-1"]
[Round "09"]
[TimeControl "180+1"]
[Date "2021.07.21"]
[WhiteClock "0:00:07"]
[BlackClock "0:00:15"]

1. d4 {[%clk 0:03:00]}  Nf6 {[%clk 0:02:57]} 2. Nf3 {[%clk 0:02:58]}  e6 {[%clk 0:02:48]} 3. g3 {[%clk 0:02:56]}  c5 {[%clk 0:02:37]} 4. Bg2 {[%clk 0:02:48]}  cxd4 {[%clk 0:02:34]} 5. Nxd4 {[%clk 0:02:41]}  Nc6 {[%clk 0:02:33]} 6. O-O {[%clk 0:02:36]}  Be7 {[%clk 0:02:09]} 7. c4 {[%clk 0:02:30]}  Qb6 {[%clk 0:02:00]} 8. Nb5 {[%clk 0:02:09]}  Ne5 {[%clk 0:01:36]} 9. Be3 {[%clk 0:01:42]}  Qd8 {[%clk 0:01:36]} 10. Bxa7 {[%clk 0:01:19]}  Nxc4 {[%clk 0:01:33]} 11. Qc2 {[%clk 0:00:58]}  d5 {[%clk 0:01:02]} 12. b3 {[%clk 0:00:56]}  Bd7 {[%clk 0:01:02]} 13. bxc4 {[%clk 0:00:31]}  Bxb5 {[%clk 0:01:01]} 14. cxb5 {[%clk 0:00:26]}  Rxa7 {[%clk 0:01:00]} 15. Nc3 {[%clk 0:00:24]}  O-O {[%clk 0:00:59]} 16. Rfd1 {[%clk 0:00:19]}  Qa5 {[%clk 0:00:58]} 17. Qb3 {[%clk 0:00:17]}  Rc8 {[%clk 0:00:54]} 18. Rac1 {[%clk 0:00:16]}  Rc5 {[%clk 0:00:43]} 19. e4 {[%clk 0:00:15]}  dxe4 {[%clk 0:00:28]} 20. Nxe4 {[%clk 0:00:15]}  Rxc1 {[%clk 0:00:26]} 21. Rxc1 {[%clk 0:00:15]}  g6 {[%clk 0:00:18]} 22. Rc8+ {[%clk 0:00:13]}  Kg7 {[%clk 0:00:19]} 23. h4 {[%clk 0:00:10]}  Nxe4 {[%clk 0:00:16]} 24. Bxe4 {[%clk 0:00:09]}  Qe1+ {[%clk 0:00:16]} 25. Kh2 {[%clk 0:00:09]}  Qxe4 {[%clk 0:00:17]} 26. Qb2+ {[%clk 0:00:08]}  Bf6 {[%clk 0:00:16]} 27. Qc2 {[%clk 0:00:07]}  Qxc2 {[%clk 0:00:16]} 28. Rxc2 {[%clk 0:00:07]}  b6 {[%clk 0:00:17]} 29. Rc6 {[%clk 0:00:07]}  Rxa2 {[%clk 0:00:17]} 30. Kg2 {[%clk 0:00:07]}  Bd4 {[%clk 0:00:15]} 31. Kh3 {[%clk 0:00:07]}  Rxf2 {[%clk 0:00:15]} 0-1


[Site "https://www.chess.com"]

[Event "Titled Tuesday Blitz July 20 2021"]
[White "Zierk, Steven"]
[Black "Ozen, Bahadir"]
[WhiteFideId "2034255"]
[BlackFideId "6337058"]
[WhiteElo "2494"]
[BlackElo "2503"]
[Result "1-0"]
[Round "09"]
[TimeControl "180+1"]
[Date "2021.07.20"]
[WhiteClock "0:01:27"]
[BlackClock "0:00:18"]

1. e4 {[%clk 0:03:00]}  c6 {[%clk 0:02:57]} 2. d4 {[%clk 0:03:00]}  d5 {[%clk 0:02:58]} 3. exd5 {[%clk 0:03:01]}  cxd5 {[%clk 0:02:58]} 4. Bd3 {[%clk 0:03:02]}  Nf6 {[%clk 0:02:56]} 5. c3 {[%clk 0:03:01]}  Bg4 {[%clk 0:02:57]} 6. Qb3 {[%clk 0:03:02]}  Qc8 {[%clk 0:02:33]} 7. Bf4 {[%clk 0:03:00]}  e6 {[%clk 0:02:31]} 8. Nd2 {[%clk 0:03:00]}  Nc6 {[%clk 0:02:30]} 9. Ngf3 {[%clk 0:02:59]}  Be7 {[%clk 0:02:20]} 10. O-O {[%clk 0:02:58]}  O-O {[%clk 0:02:14]} 11. a4 {[%clk 0:02:52]}  Bd8 {[%clk 0:02:09]} 12. Rae1 {[%clk 0:02:47]}  Bc7 {[%clk 0:02:05]} 13. Ne5 {[%clk 0:02:46]}  Nxe5 {[%clk 0:02:03]} 14. Bxe5 {[%clk 0:02:47]}  Bh5 {[%clk 0:01:52]} 15. f4 {[%clk 0:02:45]}  Nd7 {[%clk 0:01:17]} 16. Qc2 {[%clk 0:02:21]}  Bg6 {[%clk 0:01:09]} 17. Bxc7 {[%clk 0:02:17]}  Bxd3 {[%clk 0:01:06]} 18. Qxd3 {[%clk 0:02:18]}  Qxc7 {[%clk 0:01:07]} 19. f5 {[%clk 0:02:18]}  Rae8 {[%clk 0:00:59]} 20. fxe6 {[%clk 0:02:17]}  Rxe6 {[%clk 0:00:50]} 21. Rxe6 {[%clk 0:02:09]}  fxe6 {[%clk 0:00:50]} 22. Re1 {[%clk 0:02:09]}  Rf6 {[%clk 0:00:46]} 23. Nf3 {[%clk 0:02:08]}  Qf4 {[%clk 0:00:47]} 24. Qb5 {[%clk 0:02:06]}  Qc7 {[%clk 0:00:47]} 25. Qb4 {[%clk 0:01:57]}  Nf8 {[%clk 0:00:42]} 26. Ne5 {[%clk 0:01:55]}  Ng6 {[%clk 0:00:35]} 27. Qb5 {[%clk 0:01:30]}  Qe7 {[%clk 0:00:25]} 28. Nxg6 {[%clk 0:01:28]}  Rxg6 {[%clk 0:00:20]} 29. Qxd5 {[%clk 0:01:26]}  exd5 {[%clk 0:00:20]} 30. Rxe7 {[%clk 0:01:27]}  Rb6 {[%clk 0:00:19]} 31. b4 {[%clk 0:01:26]}  Rc6 {[%clk 0:00:19]} 32. Rxb7 {[%clk 0:01:26]}  Rxc3 {[%clk 0:00:19]} 33. Rxa7 {[%clk 0:01:26]}  Rc4 {[%clk 0:00:19]} 34. b5 {[%clk 0:01:27]}  Rxd4 {[%clk 0:00:19]} 35. b6 {[%clk 0:01:27]}  Rb4 {[%clk 0:00:18]} 36. b7 {[%clk 0:01:27]} 1-0


[Site "https://www.chess.com"]

[Event "Titled Tuesday Blitz July 20 2021"]
[White "kai_nov"]
[Black "Locci, Damiano"]
[BlackFideId "819751"]
[WhiteElo "2310"]
[BlackElo "2439"]
[Result "1-0"]
[Round "09"]
[TimeControl "180+1"]
[Date "2021.07.21"]
[WhiteClock "0:00:04"]
[BlackClock "0:00:17"]

1. d4 {[%clk 0:03:00]}  d5 {[%clk 0:02:53]} 2. c4 {[%clk 0:03:00]}  Nc6 {[%clk 0:02:52]} 3. Nc3 {[%clk 0:02:59]}  dxc4 {[%clk 0:02:51]} 4. d5 {[%clk 0:02:50]}  Na5 {[%clk 0:02:50]} 5. Qa4+ {[%clk 0:02:47]}  c6 {[%clk 0:02:49]} 6. b4 {[%clk 0:02:44]}  b5 {[%clk 0:02:45]} 7. Qxa5 {[%clk 0:02:33]}  Qxa5 {[%clk 0:02:45]} 8. bxa5 {[%clk 0:02:33]}  b4 {[%clk 0:02:46]} 9. Nd1 {[%clk 0:02:27]}  cxd5 {[%clk 0:02:46]} 10. e4 {[%clk 0:02:24]}  e6 {[%clk 0:02:33]} 11. exd5 {[%clk 0:02:23]}  exd5 {[%clk 0:02:33]} 12. Be3 {[%clk 0:02:20]}  Bd6 {[%clk 0:02:03]} 13. Bd4 {[%clk 0:02:17]}  Nf6 {[%clk 0:02:03]} 14. Nf3 {[%clk 0:01:45]}  O-O {[%clk 0:02:01]} 15. Ne3 {[%clk 0:01:39]}  Be6 {[%clk 0:01:48]} 16. Be2 {[%clk 0:01:36]}  Bc7 {[%clk 0:01:47]} 17. a6 {[%clk 0:01:28]}  Ne4 {[%clk 0:01:32]} 18. O-O {[%clk 0:01:24]}  Bc8 {[%clk 0:01:10]} 19. Nxd5 {[%clk 0:01:18]}  Bb6 {[%clk 0:00:44]} 20. Bxb6 {[%clk 0:00:57]}  axb6 {[%clk 0:00:45]} 21. Bxc4 {[%clk 0:00:56]}  Bxa6 {[%clk 0:00:41]} 22. Bxa6 {[%clk 0:00:47]}  Rxa6 {[%clk 0:00:42]} 23. Nxb4 {[%clk 0:00:39]}  Ra5 {[%clk 0:00:43]} 24. Rab1 {[%clk 0:00:35]}  Nc3 {[%clk 0:00:39]} 25. Rb2 {[%clk 0:00:34]}  Rc8 {[%clk 0:00:37]} 26. g3 {[%clk 0:00:27]}  Rb5 {[%clk 0:00:36]} 27. Nd4 {[%clk 0:00:20]}  Rbc5 {[%clk 0:00:34]} 28. Ndc6 {[%clk 0:00:19]}  R8xc6 {[%clk 0:00:19]} 29. Nxc6 {[%clk 0:00:19]}  Rxc6 {[%clk 0:00:20]} 30. Rc2 {[%clk 0:00:19]}  Rc5 {[%clk 0:00:17]} 31. Kg2 {[%clk 0:00:17]}  Kf8 {[%clk 0:00:16]} 32. Rfc1 {[%clk 0:00:16]}  Ne4 {[%clk 0:00:16]} 33. Rxc5 {[%clk 0:00:16]}  Nxc5 {[%clk 0:00:17]} 34. Rb1 {[%clk 0:00:16]}  Nd7 {[%clk 0:00:18]} 35. Rc1 {[%clk 0:00:16]}  Ke7 {[%clk 0:00:18]} 36. Rc7 {[%clk 0:00:16]}  Kd6 {[%clk 0:00:18]} 37. Rc8 {[%clk 0:00:16]}  g6 {[%clk 0:00:18]} 38. f4 {[%clk 0:00:15]}  h5 {[%clk 0:00:18]} 39. Kf3 {[%clk 0:00:16]}  Nc5 {[%clk 0:00:16]} 40. h3 {[%clk 0:00:15]}  Ne6 {[%clk 0:00:16]} 41. g4 {[%clk 0:00:14]}  hxg4+ {[%clk 0:00:15]} 42. hxg4 {[%clk 0:00:14]}  Kd7 {[%clk 0:00:16]} 43. Rb8 {[%clk 0:00:14]}  Kc7 {[%clk 0:00:15]} 44. Ra8 {[%clk 0:00:14]}  Kd6 {[%clk 0:00:13]} 45. Ra7 {[%clk 0:00:15]}  f5 {[%clk 0:00:14]} 46. gxf5 {[%clk 0:00:14]}  gxf5 {[%clk 0:00:15]} 47. Rf7 {[%clk 0:00:14]}  b5 {[%clk 0:00:13]} 48. Rxf5 {[%clk 0:00:13]}  Nd4+ {[%clk 0:00:14]} 49. Ke4 {[%clk 0:00:13]}  Nxf5 {[%clk 0:00:13]} 50. Kxf5 {[%clk 0:00:13]}  Kc5 {[%clk 0:00:14]} 51. Ke6 {[%clk 0:00:11]}  Kb4 {[%clk 0:00:15]} 52. f5 {[%clk 0:00:12]}  Ka3 {[%clk 0:00:16]} 53. f6 {[%clk 0:00:12]}  Kxa2 {[%clk 0:00:16]} 54. f7 {[%clk 0:00:13]}  b4 {[%clk 0:00:17]} 55. f8=Q {[%clk 0:00:13]}  b3 {[%clk 0:00:18]} 56. Qa8+ {[%clk 0:00:12]}  Kb1 {[%clk 0:00:18]} 57. Qh1+ {[%clk 0:00:11]}  Ka2 {[%clk 0:00:18]} 58. Qd5 {[%clk 0:00:11]}  Ka1 {[%clk 0:00:18]} 59. Qa5+ {[%clk 0:00:07]}  Kb1 {[%clk 0:00:18]} 60. Qe1+ {[%clk 0:00:06]}  Ka2 {[%clk 0:00:17]} 61. Qa5+ {[%clk 0:00:03]}  Kb1 {[%clk 0:00:18]} 62. Qc3 {[%clk 0:00:02]}  b2 {[%clk 0:00:15]} 63. Kd5 {[%clk 0:00:02]}  Ka2 {[%clk 0:00:16]} 64. Qa5+ {[%clk 0:00:02]}  Kb1 {[%clk 0:00:16]} 65. Kc4 {[%clk 0:00:03]}  Kc2 {[%clk 0:00:17]} 66. Qc3+ {[%clk 0:00:03]}  Kb1 {[%clk 0:00:18]} 67. Kb3 {[%clk 0:00:03]}  Ka1 {[%clk 0:00:17]} 68. Qxb2# {[%clk 0:00:04]} 1-0


[Site "https://www.chess.com"]

[Event "Titled Tuesday Blitz July 20 2021"]
[White "Al-Tarboush, Ward"]
[Black "ValeriyGrinev"]
[WhiteFideId "7601450"]
[WhiteElo "2319"]
[BlackElo "2631"]
[Result "1-0"]
[Round "10"]
[TimeControl "180+1"]
[Date "2021.07.21"]
[WhiteClock "0:00:04"]
[BlackClock "0:00:05"]

1. e4 {[%clk 0:03:00]}  e5 {[%clk 0:02:59]} 2. Nf3 {[%clk 0:03:00]}  Nc6 {[%clk 0:02:58]} 3. Bb5 {[%clk 0:03:00]}  a6 {[%clk 0:02:58]} 4. Ba4 {[%clk 0:03:00]}  Nf6 {[%clk 0:02:58]} 5. O-O {[%clk 0:03:00]}  Nxe4 {[%clk 0:02:59]} 6. d4 {[%clk 0:02:59]}  b5 {[%clk 0:02:59]} 7. Bb3 {[%clk 0:02:58]}  d5 {[%clk 0:02:59]} 8. dxe5 {[%clk 0:02:58]}  Be6 {[%clk 0:02:59]} 9. Nbd2 {[%clk 0:02:58]}  Nc5 {[%clk 0:02:56]} 10. c3 {[%clk 0:02:57]}  d4 {[%clk 0:02:48]} 11. Bxe6 {[%clk 0:02:57]}  Nxe6 {[%clk 0:02:48]} 12. Ne4 {[%clk 0:02:57]}  Be7 {[%clk 0:02:43]} 13. cxd4 {[%clk 0:02:52]}  Ncxd4 {[%clk 0:02:44]} 14. Nxd4 {[%clk 0:02:51]}  Qxd4 {[%clk 0:02:45]} 15. Qf3 {[%clk 0:02:46]}  Rd8 {[%clk 0:02:37]} 16. Bf4 {[%clk 0:02:42]}  Qd3 {[%clk 0:02:32]} 17. Be3 {[%clk 0:02:40]}  O-O {[%clk 0:02:22]} 18. h4 {[%clk 0:02:31]}  Qd5 {[%clk 0:02:18]} 19. Qf5 {[%clk 0:02:17]}  f6 {[%clk 0:01:15]} 20. Rac1 {[%clk 0:01:03]}  fxe5 {[%clk 0:00:30]} 21. Qg4 {[%clk 0:01:02]}  h5 {[%clk 0:00:21]} 22. Qg6 {[%clk 0:00:54]}  Nf4 {[%clk 0:00:14]} 23. Bxf4 {[%clk 0:00:51]}  Rxf4 {[%clk 0:00:15]} 24. Rxc7 {[%clk 0:00:40]}  Qxe4 {[%clk 0:00:14]} 25. Qxe4 {[%clk 0:00:39]}  Rxe4 {[%clk 0:00:15]} 26. Rxe7 {[%clk 0:00:39]}  Rxh4 {[%clk 0:00:10]} 27. Rc1 {[%clk 0:00:38]}  e4 {[%clk 0:00:08]} 28. g3 {[%clk 0:00:38]}  Rg4 {[%clk 0:00:08]} 29. Kg2 {[%clk 0:00:36]}  Rd2 {[%clk 0:00:08]} 30. Rc8+ {[%clk 0:00:36]}  Kh7 {[%clk 0:00:08]} 31. Rc5 {[%clk 0:00:37]}  Kh6 {[%clk 0:00:04]} 32. Rc6+ {[%clk 0:00:34]}  g6 {[%clk 0:00:04]} 33. Rxa6 {[%clk 0:00:23]}  Rxb2 {[%clk 0:00:04]} 34. Ree6 {[%clk 0:00:20]}  Rb4 {[%clk 0:00:03]} 35. Kf1 {[%clk 0:00:16]}  Rb1+ {[%clk 0:00:03]} 36. Kg2 {[%clk 0:00:16]}  Rb2 {[%clk 0:00:04]} 37. Kg1 {[%clk 0:00:15]}  Rg5 {[%clk 0:00:03]} 38. Rxe4 {[%clk 0:00:13]}  Rc5 {[%clk 0:00:02]} 39. Ree6 {[%clk 0:00:12]}  Rg5 {[%clk 0:00:03]} 40. Kg2 {[%clk 0:00:12]}  Rg4 {[%clk 0:00:04]} 41. Rf6 {[%clk 0:00:12]}  Rg5 {[%clk 0:00:04]} 42. Kf3 {[%clk 0:00:10]}  h4 {[%clk 0:00:04]} 43. gxh4 {[%clk 0:00:10]}  Rg1 {[%clk 0:00:05]} 44. Ke4 {[%clk 0:00:09]}  Rb4+ {[%clk 0:00:05]} 45. Kd5 {[%clk 0:00:08]}  Rxh4 {[%clk 0:00:06]} 46. f4 {[%clk 0:00:07]}  Rh5+ {[%clk 0:00:06]} 47. Kd6 {[%clk 0:00:04]}  Rd1+ {[%clk 0:00:06]} 48. Ke7 {[%clk 0:00:05]}  Rg1 {[%clk 0:00:06]} 49. Kf7 {[%clk 0:00:04]}  Rh2 {[%clk 0:00:06]} 50. Rxg6+ {[%clk 0:00:04]}  Rxg6 {[%clk 0:00:05]} 51. Rxg6+ {[%clk 0:00:05]}  Kh5 {[%clk 0:00:06]} 52. Rg5+ {[%clk 0:00:06]}  Kh4 {[%clk 0:00:06]} 53. Rxb5 {[%clk 0:00:06]}  Rxa2 {[%clk 0:00:07]} 54. f5 {[%clk 0:00:06]}  Ra7+ {[%clk 0:00:07]} 55. Kg6 {[%clk 0:00:06]}  Ra1 {[%clk 0:00:05]} 56. f6 {[%clk 0:00:04]}  Rg1+ {[%clk 0:00:06]} 57. Kh6 {[%clk 0:00:04]}  Rf1 {[%clk 0:00:04]} 58. Kg7 {[%clk 0:00:04]}  Kg4 {[%clk 0:00:05]} 59. f7 {[%clk 0:00:04]} 1-0


[Site "https://www.chess.com"]

[Event "Titled Tuesday Blitz July 20 2021"]
[White "Arabidze, Meri"]
[Black "Bartel, Michal"]
[WhiteFideId "13604040"]
[BlackFideId "1119257"]
[WhiteElo "2432"]
[BlackElo "2271"]
[Result "1-0"]
[Round "10"]
[TimeControl "180+1"]
[Date "2021.07.20"]
[WhiteClock "0:00:22"]
[BlackClock "0:01:01"]

1. Nf3 {[%clk 0:03:00]}  d5 {[%clk 0:02:59]} 2. d4 {[%clk 0:03:00]}  Bg4 {[%clk 0:02:59]} 3. Nbd2 {[%clk 0:02:58]}  c6 {[%clk 0:02:58]} 4. g3 {[%clk 0:02:59]}  e6 {[%clk 0:02:58]} 5. Bg2 {[%clk 0:02:59]}  Nf6 {[%clk 0:02:58]} 6. O-O {[%clk 0:02:59]}  Nbd7 {[%clk 0:02:59]} 7. c4 {[%clk 0:02:59]}  Be7 {[%clk 0:02:59]} 8. b3 {[%clk 0:03:00]}  O-O {[%clk 0:02:59]} 9. Bb2 {[%clk 0:03:00]}  Re8 {[%clk 0:02:59]} 10. a3 {[%clk 0:02:57]}  Bf8 {[%clk 0:02:53]} 11. b4 {[%clk 0:02:54]}  a5 {[%clk 0:02:50]} 12. Qb3 {[%clk 0:02:49]}  dxc4 {[%clk 0:02:42]} 13. Nxc4 {[%clk 0:02:48]}  axb4 {[%clk 0:02:40]} 14. axb4 {[%clk 0:02:48]}  Rxa1 {[%clk 0:02:37]} 15. Rxa1 {[%clk 0:02:48]}  Nb6 {[%clk 0:02:38]} 16. Nce5 {[%clk 0:02:42]}  Bf5 {[%clk 0:02:26]} 17. h3 {[%clk 0:02:32]}  Nbd5 {[%clk 0:02:25]} 18. b5 {[%clk 0:02:28]}  Qb6 {[%clk 0:02:24]} 19. Nd2 {[%clk 0:02:13]}  Qxb5 {[%clk 0:02:16]} 20. Qxb5 {[%clk 0:02:12]}  cxb5 {[%clk 0:02:17]} 21. e4 {[%clk 0:02:12]}  Nxe4 {[%clk 0:02:10]} 22. Nxe4 {[%clk 0:02:09]}  Rc8 {[%clk 0:02:08]} 23. g4 {[%clk 0:01:43]}  Bg6 {[%clk 0:02:04]} 24. Nxg6 {[%clk 0:01:42]}  hxg6 {[%clk 0:02:04]} 25. Rc1 {[%clk 0:01:42]}  Ra8 {[%clk 0:02:03]} 26. Ra1 {[%clk 0:01:30]}  Rc8 {[%clk 0:02:02]} 27. Nc5 {[%clk 0:01:30]}  Bxc5 {[%clk 0:01:47]} 28. dxc5 {[%clk 0:01:31]}  Rxc5 {[%clk 0:01:44]} 29. Ra8+ {[%clk 0:01:31]}  Kh7 {[%clk 0:01:44]} 30. Rb8 {[%clk 0:01:23]}  Nf4 {[%clk 0:01:42]} 31. Rxb7 {[%clk 0:01:12]}  Kg8 {[%clk 0:01:28]} 32. Bf1 {[%clk 0:01:07]}  g5 {[%clk 0:01:25]} 33. Bd4 {[%clk 0:00:50]}  Rc1 {[%clk 0:01:22]} 34. Be3 {[%clk 0:00:50]}  Nxh3+ {[%clk 0:01:11]} 35. Kg2 {[%clk 0:00:48]}  Nf4+ {[%clk 0:01:12]} 36. Bxf4 {[%clk 0:00:45]}  gxf4 {[%clk 0:01:12]} 37. Rxb5 {[%clk 0:00:42]}  f6 {[%clk 0:01:12]} 38. Bd3 {[%clk 0:00:36]}  Kf7 {[%clk 0:01:06]} 39. Rb7+ {[%clk 0:00:36]}  Kf8 {[%clk 0:01:06]} 40. Bg6 {[%clk 0:00:35]}  Rc8 {[%clk 0:01:03]} 41. Rf7+ {[%clk 0:00:35]}  Kg8 {[%clk 0:01:03]} 42. Re7 {[%clk 0:00:35]}  e5 {[%clk 0:01:03]} 43. Re8+ {[%clk 0:00:32]}  Rxe8 {[%clk 0:01:04]} 44. Bxe8 {[%clk 0:00:33]}  Kh7 {[%clk 0:01:03]} 45. Kf3 {[%clk 0:00:32]}  Kh6 {[%clk 0:01:04]} 46. Ke4 {[%clk 0:00:28]}  Kg5 {[%clk 0:01:04]} 47. f3 {[%clk 0:00:27]}  Kh4 {[%clk 0:01:00]} 48. Kf5 {[%clk 0:00:23]}  Kg3 {[%clk 0:01:01]} 49. Bc6 {[%clk 0:00:23]}  Kh4 {[%clk 0:01:01]} 50. Kg6 {[%clk 0:00:22]} 1-0


[Site "https://www.chess.com"]